Cogmind - Beta 12 @@@ ROGUE MODE // 2023.08.27 @ 19:10:29 Player: Waste Result: Establishing 0b11! Performance ------------- Evolutions (9) 4500 Regions Visited (29) 5800 Robots Destroyed (324) 1620 Value Destroyed (15149) 15149 Prototype IDs (306) 6120 Alien Tech Used (1) 200 Bonus (33102) 33102 TOTAL SCORE: 66491 Bonus ------- High Alert Combat Kills 1211 Follower Combat Kills 2423 Entered Garrisons 200 Network Hubs Disabled 200 Aligned with FarCom 300 Met Data Miner 300 Met Warlord at Base 500 MAIN.C Attacked Warlord 500 Warlord Defense Kills 388 Built Enhanced Grunts 300 A7 Reached Mainframe 300 Met R17 at Cetus 500 Met R17 at Research 2000 Destroyed MAIN.C Guards 500 Met MAIN.C 5000 Hacked MAIN.C 300 Destroyed MAIN.C Shell 5000 Destroyed MAIN.C 10000 Met Warlord at Command 2000 Win 3000 Friendly Fire -1820 Cogmind --------- Core Integrity 1559/1600 Matter 800/800 Energy 1178/1200 System Corruption 12% Temperature Cool (18) Movement Treading (165) Location 0b11 Command Parts ------- > --- POWER (4) -------- Quantum Reactor Quantum Reactor Vortex Chain Reactor > --- PROPULSION (7) --- Medium Treads (fused) Improved Heavy Treads Improved Heavy Siege Treads Centrium Heavy Treads > --- UTILITY (11) ----- Advanced Cooling System Advanced Cooling System Huge Storage Unit Experimental Matter Compressor Experimental Targeting Computer Experimental Target Analyzer Experimental Core Analyzer Advanced Kinecellerator Advanced Weapon Cycler Centrium Medium Armor Plating Graphene Brace > --- WEAPON (4) ------- Helical Railgun Helical Railgun Linear Accelerator Powered Hammer > --- INVENTORY (25) --- Quantum Reactor Quantum Reactor Centrium Heavy Treads Long-range Terrain Scanner Improved Transmission Jammer Thermal Barrier Antimissile System Antimissile System Long-range Tractor Beam Neutron Cannon Advanced KE Penetrator Scatter Rocket Array Advanced Remote Datajack Peak State ------------ > --- POWER ------------ Quantum Reactor Quantum Reactor Vortex Chain Reactor > --- PROPULSION ------- Medium Treads Improved Heavy Treads Improved Heavy Siege Treads Centrium Heavy Treads > --- UTILITY ---------- Advanced Cooling System Huge Storage Unit Experimental Targeting Computer Experimental Target Analyzer Experimental Core Analyzer Advanced Weapon Cycler Centrium Light Armor Plating Centrium Medium Armor Plating Graphene Brace Thermal Barrier Improved Energy Mantle > --- WEAPON ----------- Neutron Cannon Helical Railgun Helical Railgun Helical Railgun > --- INVENTORY -------- Quantum Reactor Quantum Reactor Centrium Heavy Treads Advanced Cooling System Experimental Matter Compressor Long-range Terrain Scanner Advanced Kinecellerator Improved Transmission Jammer Antimissile System Antimissile System Long-range Tractor Beam Advanced KE Penetrator Linear Accelerator Scatter Rocket Array Advanced Remote Datajack [Rating: 220] Favorites ----------- Power Quantum Reactor Engine Improved Deuterium Engine Power Core Nuclear Core Reactor Quantum Reactor Propulsion Centrium Heavy Treads Treads Centrium Heavy Treads Leg Carbon-fiber Leg Wheel Compact Wheel Utility High-capacity Storage Unit Device Improved Cooling System Storage High-capacity Storage Unit Processor Advanced Signal Interpreter Hackware Improved Hacking Suite Protection Centrium Medium Armor Plating Weapon Advanced KE Penetrator Energy Gun Improved Medium Laser Energy Cannon Neutron Cannon Ballistic Gun Advanced KE Penetrator Ballistic Cannon Mass Driver Launcher Heavy Missile Launcher Special Weapon Advanced Remote Datajack Impact Weapon Makeshift Hammer Slashing Weapon Centrium Greatsword Piercing Weapon Lance Build | -11 -10 -10 -9 -9 -9 -8 -8 -8 -8 -7 -7 -7 -7 -6 -6 -6 -6 -6 -6 -5 -5 -5 -5 -4 -4 -3 -2 -1 -1 ------- Run | Jun Mat Min Mat Min Exi Min Mat Gar Mat Fac Low Low Dat Pro Fac Ext Cet Arc Hub Fac Upp Upp War Pro Fac Res Res Acc Com Slots Evolved 18 | . . . 2 . . . 2 . . 2 . . . . 2 . . . . 2 . . . . 2 2 2 2 . Power 3 | . . . . . . . . . . . . . . . . . . . . . . . . . 1 . 1 1 . Propulsion 4 | . . . 1 . . . . . . 1 . . . . . . . . . 2 . . . . . . . . . Utility 9 | . . . 1 . . . . . . 1 . . . . 2 . . . . . . . . . 1 2 1 1 . Weapon 2 | . . . . . . . 2 . . . . . . . . . . . . . . . . . . . . . . Parts Attached 430 | 7 4 . 12 4 1 5 13 16 11 31 13 11 . 33 49 19 11 10 7 8 9 1 10 14 22 5 23 25 56 Power 21 | 1 . . 2 . . 1 2 . 1 1 . . . 1 . 1 1 . . . . . . 1 1 . 2 2 4 Engine 7 | 1 . . 2 . . . 1 . 1 1 . . . 1 . . . . . . . . . . . . . . . Core 3 | . . . . . . 1 1 . . . . . . . . 1 . . . . . . . . . . . . . Reactor 11 | . . . . . . . . . . . . . . . . . 1 . . . . . . 1 1 . 2 2 4 Propulsion 53 | 2 . . 4 . . 2 4 2 1 4 2 3 . 4 7 4 2 . . 1 . . 1 5 1 . 1 2 1 Treads 45 | 2 . . 3 . . 2 4 2 1 4 2 3 . 2 3 4 2 . . 1 . . . 5 1 . 1 2 1 Leg 4 | . . . 1 . . . . . . . . . . 2 . . . . . . . . 1 . . . . . . Wheel 4 | . . . . . . . . . . . . . . . 4 . . . . . . . . . . . . . . Hover . | . . . . . . . . . . . . . . . . . . . . . . . . . . . . . . Flight . | . . . . . . . . . . . . . . . . . . . . . . . . . . . . . . Utility 221 | 2 2 . 5 4 1 1 1 5 2 10 9 5 . 10 22 6 2 9 5 4 9 1 8 6 16 2 13 18 43 Device 142 | 1 . . 2 1 . 1 . 4 2 5 6 2 . 5 13 2 . 7 5 3 8 . 4 5 13 2 7 15 29 Storage 9 | 1 1 . . . 1 . . . . . . . . 2 1 . . . . . . . 1 . . . 1 . 1 Processor 14 | . 1 . 1 . . . . . . 1 1 . . . 3 . . . . . . . 1 . 1 . 4 1 . Hackware 7 | . . . . . . . . . . . . . . . . . . . . 1 . . . . . . . . 6 Protection 49 | . . . 2 3 . . 1 1 . 4 2 3 . 3 5 4 2 2 . . 1 1 2 1 2 . 1 2 7 Artifact . | . . . . . . . . . . . . . . . . . . . . . . . . . . . . . . Weapon 135 | 2 2 . 1 . . 1 6 9 7 16 2 3 . 18 20 8 6 1 2 3 . . 1 2 4 3 7 3 8 Energy Gun 13 | . 2 . 1 . . 1 2 . 1 . . . . . 2 . 1 1 1 1 . . . . . . . . . Energy Cannon 27 | . . . . . . . . . . . 1 1 . 7 4 3 . . 1 1 . . . 1 2 . 2 2 2 Ballistic Gun 56 | 2 . . . . . . 4 4 4 6 1 2 . 8 4 2 5 . . . . . 1 1 2 2 5 1 2 Ballistic Cannon 8 | . . . . . . . . 3 . 2 . . . . . 1 . . . . . . . . . . . . 2 Launcher 6 | . . . . . . . . . . 1 . . . 3 1 1 . . . . . . . . . . . . . Special Weapon 1 | . . . . . . . . . . . . . . . . . . . . . . . . . . . . . 1 Impact Weapon 21 | . . . . . . . . 2 . 7 . . . . 9 1 . . . 1 . . . . . . . . 1 Slashing Weapon 1 | . . . . . . . . . . . . . . . . . . . . . . . . . . 1 . . . Piercing Weapon 2 | . . . . . . . . . 2 . . . . . . . . . . . . . . . . . . . . Special Melee Weapon . | . . . . . . . . . . . . . . . . . . . . . . . . . . . . . . Unidentified Prototypes 32 | . 1 . 1 . . . 2 . 1 1 . . . 2 2 . 4 . . . 1 1 6 . . 1 8 . 1 Corrupted Parts 9 | . . . . . . . . . . . . . . . . . 4 . . 1 . . . 3 . . . . 1 System Corruption 42 | . . . . . . . . . . . . . . . . . 17 . . 3 . . . 19 . . . . 3 Parts Lost 34 | . . . . . . 3 . 4 1 4 2 8 . 5 2 1 . . . . . . . . 1 . 1 . 2 Power 2 | . . . . . . . . . 1 . . . . . . . . . . . . . . . . . 1 . . Propulsion 14 | . . . . . . 2 . 2 . 1 1 5 . 2 1 . . . . . . . . . . . . . . Utility 8 | . . . . . . . . . . 1 1 1 . 2 . . . . . . . . . . 1 . . . 2 Weapon 10 | . . . . . . 1 . 2 . 2 . 2 . 1 1 1 . . . . . . . . . . . . . Highest Loss Streak 5 | . . . . . . 2 . 3 1 3 1 5 . 2 2 1 . . . . . . . . 1 . 1 . 2 To Critical Strikes . | . . . . . . . . . . . . . . . . . . . . . . . . . . . . . . Average Slot Usage (%) 90 | . 99 100 99 99 100 99 99 91 98 99 99 84 54 81 95 100 89 85 86 82 82 81 79 82 84 85 86 87 86 Engine 4 | . 14 14 11 11 11 10 3 9 8 7 7 7 7 6 6 3 . . . . . . . . . . . . . Reactor 4 | . . . . . . . . . . . . . . . . . 4 6 6 5 5 5 5 5 9 9 11 14 13 Treads 20 | . 28 28 30 33 33 32 26 26 27 29 29 19 15 12 7 24 16 13 13 17 17 16 16 16 20 18 15 15 15 Device 10 | . 1 . 7 11 11 11 9 9 9 11 10 11 15 13 14 7 6 9 12 5 5 5 4 5 13 18 18 12 12 Storage 6 | . 14 14 11 11 11 11 9 9 9 7 7 7 7 7 5 6 6 6 6 5 5 5 5 5 5 4 4 3 4 Processor 8 | . 13 14 4 . . . . . . 2 6 7 7 3 7 13 13 13 13 11 11 11 12 16 10 9 11 18 14 Hackware 1 | . . . . . . . . . . . . . . . . . . . . 4 5 5 5 . . . . . 5 Protection 6 | . . . 10 10 11 11 9 8 9 8 4 3 . 2 8 11 13 9 6 5 5 5 3 4 5 9 6 5 3 Energy Gun 4 | . 25 28 22 22 22 22 17 5 . . . . . . . . . 1 4 2 . . . . . . . . . Energy Cannon 2 | . . . . . . . . . . . 3 7 . 6 3 12 11 4 1 1 5 5 4 . 2 . . 1 1 Ballistic Gun 14 | . 2 . . . . . 17 14 20 23 23 17 . 19 18 12 12 20 20 17 17 16 16 21 17 17 15 12 11 Impact Weapon 1 | . . . . . . . . 5 3 4 2 . . . 3 1 . . . . . . . . . . . . . Naked Turns 1 | . . . . . . . . . . . . . . 1 . . . . . . . . . . . . . . . Heaviest Build 222 | 14 51 51 63 63 60 60 65 79 79 79 81 93 76 112 100 92 108 104 99 95 95 95 102 98 131 122 193 194 222 Greatest Support 267 | 40 40 40 69 69 69 69 66 69 69 93 99 99 45 53 54 90 160 160 160 240 240 240 240 267 267 235 262 263 263 Greatest Overweight (x) 6 | . 1 1 1 . . . . 1 1 . 1 2 1 5 6 1 1 . . . . . . . . . . . . Average Overweight (x) . | . . 1 . . . . . . . . . . 1 1 2 . . . . . . . . . . . . . . Largest Inventory Capacity 25 | 8 20 20 20 20 20 20 20 20 20 20 20 20 20 20 20 20 20 20 20 20 20 20 20 20 20 20 25 25 25 Average Capacity 20 | 7 15 20 20 20 20 20 20 20 20 20 20 20 20 19 19 20 20 20 20 20 20 20 20 20 20 20 24 25 25 Most Carried 25 | 7 13 14 20 20 20 20 20 20 20 20 20 19 20 20 20 20 20 20 20 20 20 20 20 20 20 20 25 25 25 Average Carried 19 | 4 9 13 18 19 19 19 19 18 19 19 19 16 19 16 18 19 19 19 20 19 19 20 19 19 19 19 23 24 19 Final Capacity 25 | 8 20 20 20 20 20 20 20 20 20 20 20 20 20 20 20 20 20 20 20 20 20 20 20 20 20 20 25 25 25 Final Carried 25 | 7 13 14 19 20 20 20 20 20 20 20 19 16 20 15 20 20 20 20 20 20 20 20 20 19 20 20 25 25 14 Class Distribution -------------------- 19% | Mutant 16% | Skirmisher 14% | Scavenger-Tank 14% | Scavenger-Mutant 13% | Scavenger-Skirmisher 11% | Scavenger-Gunner 6% | Tank Dominant Class ---------------- Mutant | -10/Materials Mutant | -10/Mines Mutant | -9/Materials Mutant | -9/Mines Mutant | -9/Exiles Mutant | -8/Mines Skirmisher | -8/Materials Skirmisher | -8/Garrison Skirmisher | -8/Materials Scavenger-Skirmisher | -7/Factory Scavenger-Skirmisher | -7/Lower Caves Mutant | -7/Lower Caves Mutant | -7/Data Miner Scavenger-Tank | -6/Proximity Caves Scavenger-Tank | -6/Factory Tank | -6/Extension Commander-Tank | -6/Cetus Scavenger-Tank | -6/Archives Scavenger-Skirmisher | -6/Hub_04(d) Scavenger-Tank | -5/Factory Scavenger-Skirmisher | -5/Upper Caves Scavenger-Skirmisher | -5/Upper Caves Scavenger-Mutant | -5/Warlord Scavenger-Gunner | -4/Proximity Caves Scavenger-Skirmisher | -4/Factory Scavenger-Tank | -3/Research Scavenger-Tank | -2/Research Scavenger-Mutant | -1/Access Scavenger-Gunner | -1/Command Resources | -11 -10 -10 -9 -9 -9 -8 -8 -8 -8 -7 -7 -7 -7 -6 -6 -6 -6 -6 -6 -5 -5 -5 -5 -4 -4 -3 -2 -1 -1 ----------- Run | Jun Mat Min Mat Min Exi Min Mat Gar Mat Fac Low Low Dat Pro Fac Ext Cet Arc Hub Fac Upp Upp War Pro Fac Res Res Acc Com Matter Collected 12821 | 277 . 140 127 40 . 75 448 601 793 739 675 272 . 676 1040 1029 214 367 216 137 292 . 676 214 834 86 602 479 1772 Remotely 1378 | . . . . . . . . . 180 . . . . . . 137 . 246 39 . 186 . . . . . . . 590 Salvage Created 14566 | 18 . 46 1316 326 . 361 1219 1488 1008 584 406 144 . 409 1170 520 323 278 322 110 253 . 189 407 1037 . 849 534 1249 Parts 781 | 4 . 7 69 20 . 23 67 102 57 26 13 7 . 19 49 29 15 22 17 4 9 . 7 27 44 . 41 39 64 Haulers Intercepted 7 | . . . 3 . . . 2 . 2 . . . . . . . . . . . . . . . . . . . . Recyclers Shooed 2 | . . . . . . . . . . 1 . . . . . . . . . . . . . . . . . . 1 Parts Field Recycled . | . . . . . . . . . . . . . . . . . . . . . . . . . . . . . . Retrieved Matter . | . . . . . . . . . . . . . . . . . . . . . . . . . . . . . . Parts Self-Destructed 84 | . . . . . . . . . . . 13 7 . 15 . . . . . . 22 . . 27 . . . . . Prevented . | . . . . . . . . . . . . . . . . . . . . . . . . . . . . . . Kills | -11 -10 -10 -9 -9 -9 -8 -8 -8 -8 -7 -7 -7 -7 -6 -6 -6 -6 -6 -6 -5 -5 -5 -5 -4 -4 -3 -2 -1 -1 ------- Run | Jun Mat Min Mat Min Exi Min Mat Gar Mat Fac Low Low Dat Pro Fac Ext Cet Arc Hub Fac Upp Upp War Pro Fac Res Res Acc Com Combat Hostiles Destroyed 249 | . . 3 23 8 . 10 19 37 17 12 7 3 . 11 11 11 3 . 6 2 4 . 2 8 15 . 10 7 20 Melee 2 | . . . . . . . . . 2 . . . . . . . . . . . . . . . . . . . . Guns 203 | . . 3 23 7 . 10 19 34 9 6 6 1 . 2 9 3 2 . 6 2 4 . 2 8 14 . 9 7 17 Cannons 28 | . . . . . . . . 3 6 1 . 2 . 3 2 5 1 . . . . . . . 1 . 1 . 3 AOE 14 | . . . . . . . . . . 5 . . . 6 . 3 . . . . . . . . . . . . . Classes Destroyed 23 | 1 . 1 8 . . . 2 2 2 1 1 . . 1 1 . . . . . . . 1 . . . 2 . . Worker 19 | . . . 2 1 . 1 2 . 2 3 . . . . 5 . . . . . . . . . 1 . . . 2 Builder 7 | . . . 2 . . . 1 . 2 1 . . . . . 1 . . . . . . . . . . . . . Tunneler 6 | 1 . . . 1 . 1 . . . 1 . . . . 2 . . . . . . . . . . . . . . Hauler 7 | . . . 3 . . . 2 . 2 . . . . . . . . . . . . . . . . . . . . Recycler 9 | . . . 1 . . . 2 . 1 2 . . . . 3 . . . . . . . . . . . . . . Mechanic 1 | . . . . . . . . . . . . . . . 1 . . . . . . . . . . . . . . Operator 10 | . . . . . . . . . 1 . . . . . . . . 8 . . . . . . 1 . . . . Drone 4 | . . . . . . . . . . . . . . 2 . . . . . . . . . 2 . . . . . Watcher 20 | . . . 2 . . . 2 1 4 1 . . . . 2 . 1 . 1 . . . . . 2 . 2 1 1 Swarmer 37 | . . 3 . 3 . 4 3 11 . . . . . 2 . 4 . . 2 . 1 . . . . . 2 . 2 Grunt 87 | . . . 18 3 . 5 4 11 12 2 5 2 . 3 2 2 . . 3 2 . . . 4 3 . . 1 5 Brawler 6 | . . . . . . . 1 . . . . . . 2 . . . . . . 1 . 1 . 1 . . . . Duelist 7 | . . . 1 . . 1 1 1 1 . 1 . . . . . . . . . 1 . . . . . . . . Protector 1 | . . . . . . . . . 1 . . . . . . . . . . . . . . . . . . . . Sentry 36 | . . . 4 2 . . 6 6 2 1 . . . 1 3 5 . . 1 . 1 . . . 2 . . 1 1 Demolisher 1 | . . . . . . . . . . . . . . . . . . . . . . . . . . . 1 . . Specialist 2 | . . . . . . . . 2 . . . . . . . . . . . . . . . . . . . . . Hunter 7 | . . . . . . . 4 . 1 . . 1 . . . . . . . . . . . . . . 1 . . Programmer 41 | . . . . . . . . 6 . 3 . . . . 6 . . . . . . . . 2 9 . . 5 10 Behemoth 3 | . . . . . . . . . . . 1 . . 1 . . . . . . . . . . . . 1 . . Cetus Guard 3 | . . . . . . . . . . . . . . . . . 3 . . . . . . . . . . . . M Guard 1 | . . . . . . . . . . . . . . . . . . . . . . . . . . . . . 1 Striker 2 | . . . . . . . . . . . . . . . . . . . . . . . . . . . 2 . . Executioner 4 | . . . . . . . . . . . . . . . . . . . . . . . 1 . . . 3 . . Decomposer 2 | . . . . . . . . . . . . . . 2 . . . . . . . . . . . . . . . Assembled 6 | . . . . . . . . . . 6 . . . . . . . . . . . . . . . . . . . Savage 1 | . . . . . . . . 1 . . . . . . . . . . . . . . . . . . . . . Butcher 1 | . . . . . . . . . . . . . . . . . 1 . . . . . . . . . . . . Best Kill Streak 8 | 1 . 3 3 4 . 3 4 7 6 6 3 3 . 3 5 4 4 7 5 2 4 . 2 3 4 . 8 2 5 Combat Bots Only 8 | . . 3 3 3 . 3 4 7 4 6 3 3 . 3 3 4 3 . 4 2 4 . 2 3 4 . 8 2 3 Max Kills in Single Turn 5 | 1 . 1 2 2 . 2 2 1 5 4 2 1 . 2 2 3 2 1 3 1 1 . 1 1 2 . 2 2 1 Gunslinging 2 | . . . 1 1 . 1 . . . . 1 . . . . . . . 2 . . . . . . . 1 . . Exploded 4 | . . . . . . . . . . 4 . . . 2 . 3 . . . . . . . . . . . . . Melee 1 | . . . . . . . . . 1 . . . . . . . . . . . . . . . . . . . . Uniques/NPCs Destroyed 1 | . . . . . . . . . . . . . . . . . . . . . . . . . . . . . 1 MAIN.C (-1/Command) Combat | -11 -10 -10 -9 -9 -9 -8 -8 -8 -8 -7 -7 -7 -7 -6 -6 -6 -6 -6 -6 -5 -5 -5 -5 -4 -4 -3 -2 -1 -1 -------- Run | Jun Mat Min Mat Min Exi Min Mat Gar Mat Fac Low Low Dat Pro Fac Ext Cet Arc Hub Fac Upp Upp War Pro Fac Res Res Acc Com Damage Taken 14776 | . . 47 766 259 . 332 504 1102 674 1102 1060 836 . 945 459 722 155 143 439 . 52 . . 147 975 26 1114 624 2293 Core 1067 | . . . 48 . . 68 40 101 127 67 155 50 . 195 7 47 31 27 38 . . . . 8 . . 17 25 16 Absorbed by Shields 1702 | . . . . . . . . . . . . . . 43 52 120 26 . . . . . . . 24 . 590 34 813 Reduced by Siege Mode 413 | . . . . . . . . . . . . . . . . . . . . . . . . 5 90 . 96 10 212 Regen/Repaired (Parts) 872 | . . . 136 . . . 110 . . 119 . . . . 486 . . . . . . . 21 . . . . . . Core Remaining (%) 84 | 100 . 100 . . . 71 . . 51 . . . . 33 . . . . 82 . . . . 99 100 100 98 . 97 Volleys Fired 745 | 12 . 3 74 17 . 21 42 54 44 27 29 39 . 26 45 23 7 22 16 6 46 1 4 9 49 . 28 23 78 Largest 4 | 2 . 2 2 2 . 2 4 4 4 4 4 4 . 4 4 4 4 4 4 4 4 1 4 4 4 . 4 4 4 Hottest 333 | 40 . 112 112 112 . 112 167 186 133 136 182 182 . 333 215 236 250 195 195 186 195 90 138 138 193 . 193 149 204 Shots Fired 2207 | 24 . 6 148 35 1 45 169 226 163 90 103 57 . 74 154 90 21 61 54 12 70 1 14 36 157 . 109 53 234 Gun 1817 | 24 . 6 148 35 1 45 169 199 123 82 83 17 . 35 141 45 12 59 52 8 34 . 14 36 128 . 102 41 178 Cannon 379 | . . . . . . . . 27 40 6 20 40 . 32 13 44 9 2 2 4 36 1 . . 29 . 7 12 55 Launcher 10 | . . . . . . . . . . 2 . . . 7 . 1 . . . . . . . . . . . . . Special 1 | . . . . . . . . . . . . . . . . . . . . . . . . . . . . . 1 Kinetic 1505 | 24 . . . . . . 85 168 163 88 83 17 . 35 130 45 10 59 45 7 34 . 14 36 128 . 102 41 191 Thermal 691 | . . 6 148 35 1 45 84 58 . . 20 40 . 32 24 44 11 2 9 5 36 1 . . 29 . 7 12 42 Explosive 10 | . . . . . . . . . . 2 . . . 7 . 1 . . . . . . . . . . . . . Electromagnetic . | . . . . . . . . . . . . . . . . . . . . . . . . . . . . . . Robot Hit Streak 59 | 3 . 1 23 13 . 12 32 20 18 18 17 3 . 17 28 25 13 10 8 4 20 . 22 4 33 . 28 12 59 Robot Miss Streak 7 | 3 . 2 6 3 . 2 7 4 4 3 2 3 . 3 3 2 1 2 2 1 4 . 1 2 2 . 5 2 2 Penetration Max 1 | . . . . . . . . . 1 . . . . . 1 1 1 . 1 1 . . 1 1 1 . 1 1 1 Secondary Targets 20 | . . . 1 2 . 2 1 1 . 2 2 . . . . . . . 3 . . . 2 . 1 . 2 1 . Max Gunslinging Chain 2 | . . . 1 1 . 1 1 1 . 1 1 . . . . . . . 2 . . . 1 . 1 . 1 1 . Autonomous 105 | . . . . . . . . 90 15 . . . . . . . . . . . . . . . . . . . . Shots Hit Robots 1409 | 10 . 2 102 26 . 32 101 140 107 71 76 10 . 45 111 67 11 40 23 4 27 . 11 20 111 . 71 27 164 Core Hits 595 | 3 . 3 37 12 . 18 51 52 46 37 18 4 . 24 37 22 9 17 14 5 9 . 5 15 37 . 27 14 79 Critical Kills 36 | . . . . . . . . 1 . . 1 . . . . . 3 3 2 . 2 . . 5 7 . 5 4 3 Critical Parts Destroyed 51 | . . . . . . . 2 2 1 1 . . . . 2 . . 7 2 . . . 2 2 13 . 7 2 8 Critical Strikes 114 | . . . 6 3 . 4 5 5 2 1 1 . . . 3 . 3 10 4 . 3 . 2 7 20 . 13 6 16 Burn 18 | . . . 6 3 . 4 3 1 . . . . . . 1 . . . . . . . . . . . . . . Meltdown 1 | . . . . . . . . . . . 1 . . . . . . . . . . . . . . . . . . Destroy 90 | . . . . . . . 2 3 1 . . . . . 1 . 3 10 4 . 3 . 2 7 20 . 13 6 15 Blast 3 | . . . . . . . . 1 1 . . . . . . . . . . . . . . . . . . . 1 Smash 2 | . . . . . . . . . . 1 . . . . 1 . . . . . . . . . . . . . . Melee Attacks 83 | . . . . . . . . 25 4 17 2 . . . 26 8 . . . 1 . . . . . . . . . Impact 81 | . . . . . . . . 25 2 17 2 . . . 26 8 . . . 1 . . . . . . . . . Slashing . | . . . . . . . . . . . . . . . . . . . . . . . . . . . . . . Piercing 2 | . . . . . . . . . 2 . . . . . . . . . . . . . . . . . . . . Sneak Attacks 12 | . . . . . . . . 1 1 5 . . . . 5 . . . . . . . . . . . . . . Combat Hostiles . | . . . . . . . . . . . . . . . . . . . . . . . . . . . . . . Follow-up Attacks 1 | . . . . . . . . . 1 . . . . . . . . . . . . . . . . . . . . Damage Inflicted 38747 | 106 13 54 1827 460 . 561 1756 3276 3003 2488 1722 204 . 1702 2978 2183 374 1116 1281 160 629 . 392 711 3598 . 1540 1126 5487 Guns 27961 | 105 . 50 1767 444 . 543 1739 2906 1592 1291 1283 135 . 361 2036 721 185 1052 727 154 565 . 392 711 2812 . 1231 1010 4149 Cannons 6513 | . . . . . . . . 283 866 100 390 69 . 704 340 1139 189 64 38 . 64 . . . 577 . 309 115 1266 Explosions 2512 | . . . . . . . . . 371 583 . . . 637 . 291 . . 516 . . . . . 114 . . . . Melee 1361 | . . . . . . . . 87 143 480 49 . . . 602 . . . . . . . . . . . . . . Ramming 400 | 1 13 4 60 16 . 18 17 . 31 34 . . . . . 32 . . . 6 . . . . 95 . . 1 72 Kinetic 24787 | 105 . . . . . . 679 2588 2458 1391 1283 135 . 361 1880 721 185 1052 607 129 565 . 392 711 2812 . 1231 1010 4492 Thermal 10271 | . . 50 1767 444 . 543 1060 601 371 . 390 69 . 704 496 1139 189 64 257 25 64 . . . 691 . 309 115 923 Explosive 1511 | . . . . . . . . . . 583 . . . 637 . 291 . . . . . . . . . . . . . Electromagnetic 417 | . . . . . . . . . . . . . . . . . . . 417 . . . . . . . . . . Impact 1278 | . . . . . . . . 87 60 480 49 . . . 602 . . . . . . . . . . . . . . Slashing . | . . . . . . . . . . . . . . . . . . . . . . . . . . . . . . Piercing 83 | . . . . . . . . . 83 . . . . . . . . . . . . . . . . . . . . Highest Corruption 21 | . . . 1 1 1 1 5 9 12 6 6 6 6 6 4 4 21 21 1 3 3 3 3 19 7 2 . 5 12 Average Corruption 5 | . . . 1 1 1 1 3 7 9 5 6 6 6 6 1 4 15 17 1 3 3 3 3 16 3 2 . 3 6 Corruption Purged 26 | . . . . . . . . . . . . . . . . . . 21 . . . . . . . . . 5 . Corruption Blocked 105 | . . . . . . . . . . . . . . . . . . . . . . . . . . . 84 . 21 Effects 578 | . . . 5 4 2 9 11 70 43 25 35 34 4 44 21 37 13 21 . 14 30 2 1 1 34 2 . 12 104 Message Errors 133 | . . . 1 1 . 1 2 16 9 7 13 6 1 10 5 11 2 4 . 7 4 1 . 1 11 . . 3 17 Matter Fused 134 | . . . 2 . . 2 3 19 11 5 6 11 . 9 5 8 5 4 . . 9 . . . 7 2 . 3 23 Heat Flow Errors 67 | . . . . 1 1 1 1 11 6 2 4 4 3 5 3 3 1 1 . . 4 1 . . 4 . . 2 9 Energy Discharges 73 | . . . . . . 1 3 11 3 3 5 1 . 6 3 5 2 2 . 4 3 . 1 . 4 . . . 16 Parts Rejected 5 | . . . . . . . . 1 . . . . . 1 1 . 1 . . . . . . . . . . . 1 Parts Fused 8 | . . . . . . . . 1 . . 1 1 . 1 . 1 . . . 1 . . . . 1 . . . 1 Data Loss (minor) 65 | . . . 2 1 . 1 . 4 6 4 3 7 . 6 1 4 . . . . 4 . . . 6 . . 2 14 Data Loss (major) 26 | . . . . . . . 1 2 4 1 2 1 . 1 . 1 1 . . . 2 . . . 1 . . 2 7 Misfires 31 | . . . . 1 1 3 1 3 1 1 1 2 . 3 2 2 . 1 . 1 1 . . . . . . . 7 Alerts 12 | . . . . . . . . 1 2 . . 1 . 1 1 1 . 1 . 1 1 . . . . . . . 2 Weapon Failures 24 | . . . . . . . . 1 1 2 . . . 1 . 1 1 8 . . 2 . . . . . . . 7 Overload Shots 2 | . . . . . . . . . . . . . . . . . 2 . . . . . . . . . . . . Overflow Damage 981 | . . . . . . . . 29 93 292 8 . . . 377 17 . . 20 . . . . . 78 . . 22 45 Projectiles 147 | . . . . . . . . 29 7 . . . . . 39 . . . . . . . . . 5 . . 22 45 Explosions 199 | . . . . . . . . . 86 12 . . . . . 17 . . 20 . . . . . 64 . . . . Melee 635 | . . . . . . . . . . 280 8 . . . 338 . . . . . . . . . 9 . . . . Knockbacks 22 | . . . . . . . . 4 9 3 1 . . . 2 . . . . . . . . . 1 . . . 2 Impact 8 | . . . . . . . . . 1 3 1 . . . 2 . . . . . . . . . 1 . . . . Kinetic 12 | . . . . . . . . 2 8 . . . . . . . . . . . . . . . . . . . 2 Secondary 2 | . . . . . . . . 2 . . . . . . . . . . . . . . . . . . . . . Self-Inflicted Damage 247 | . . . . . . . . . . 126 . . . 25 . . . . 96 . . . . . . . . . . Shots 4 | . . . . . . . . . . 2 . . . 1 . . . . 1 . . . . . . . . . . Rammed 36 | 1 1 1 5 1 . 3 3 . 1 3 . . . . . 1 . . 1 2 . . . . 8 . . 1 4 Targets Rammed 44 | 1 1 1 8 1 . 4 4 . 3 3 . . . . . 1 . . 1 2 . . . . 8 . . 1 5 Kicked . | . . . . . . . . . . . . . . . . . . . . . . . . . . . . . . Crushed 8 | . . . 3 . . 1 1 . 2 . . . . . . . . . . . . . . . . . . . 1 Highest Temperature 837 | . . 153 335 154 83 207 279 405 238 231 198 232 186 837 252 275 198 126 60 123 230 270 96 164 367 . 291 413 324 Average Temperature 88 | . . 81 82 57 53 72 72 118 39 85 85 76 86 249 51 92 77 38 24 44 85 159 36 57 91 . 123 123 64 Received Heat Transfer 3164 | . . . 354 111 . 135 99 225 369 275 222 75 . 304 98 238 18 63 84 . . . . 81 128 . 60 . 225 Effects 40 | . . . . . . . 3 3 . . . . . 18 1 . . . . . . . . . . . 3 7 5 Shutdowns 5 | . . . . . . . . 1 . . . . . 4 . . . . . . . . . . . . . . . Energy Bleed 5 | . . . . . . . . 1 . . . . . 1 . . . . . . . . . . . . 1 . 2 Interference 16 | . . . . . . . 3 . . . . . . . 1 . . . . . . . . . . . 2 7 3 Matter Decay 4 | . . . . . . . . . . . . . . 4 . . . . . . . . . . . . . . . Short Circuit 2 | . . . . . . . . 1 . . . . . 1 . . . . . . . . . . . . . . . Damage (minor) 1 | . . . . . . . . . . . . . . 1 . . . . . . . . . . . . . . . Damage (major) 6 | . . . . . . . . . . . . . . 6 . . . . . . . . . . . . . . . Damage (core) 1 | . . . . . . . . . . . . . . 1 . . . . . . . . . . . . . . . Siege Activations 39 | . . . . . . . . . . . . . . . . . . . . . 1 . . 5 9 . 4 4 16 Total Turns 1247 | . . . . . . . . . . . . . . . . . . . . . 32 . . 28 153 . 74 84 876 Longest Duration 663 | . . . . . . . . . . . . . . . . . . . . . 32 . . 10 27 . 29 38 663 Robots Corrupted . | . . . . . . . . . . . . . . . . . . . . . . . . . . . . . . Combat Hostiles . | . . . . . . . . . . . . . . . . . . . . . . . . . . . . . . Parts Fried 12 | . . . . . . . . . . 2 . . . . 9 . 1 . . . . . . . . . . . . Impact Corruptions 20 | . . . . . . . . . . 9 1 . . . 9 . . . . . . . . . 1 . . . . Robots Melted 2 | . . . . 1 . . . . . . 1 . . . . . . . . . . . . . . . . . . Combat Hostiles 2 | . . . . 1 . . . . . . 1 . . . . . . . . . . . . . . . . . . Parts Melted 25 | . . . 9 1 . 6 3 . . . 1 2 . . . 1 1 . . . . . . . . . . . 1 Heat Transferred 15630 | . . 111 4255 1184 . 1480 2479 1295 250 . 550 100 . 868 742 1544 300 100 285 37 . . . . 50 . . . . Parts Sabotaged . | . . . . . . . . . . . . . . . . . . . . . . . . . . . . . . Parts Stolen 1 | . . . . . . . . . . . 1 . . . . . . . . . . . . . . . . . . Parts Stripped . | . . . . . . . . . . . . . . . . . . . . . . . . . . . . . . Power Chain Reactions 1 | . . . . . . . . . . . . . . . . . . . 1 . . . . . . . . . . Missiles Intercepted 9 | . . . . . . . . . . . . . . . . . . . . . . . . . . . . . 9 Alert | -11 -10 -10 -9 -9 -9 -8 -8 -8 -8 -7 -7 -7 -7 -6 -6 -6 -6 -6 -6 -5 -5 -5 -5 -4 -4 -3 -2 -1 -1 ------- Run | Jun Mat Min Mat Min Exi Min Mat Gar Mat Fac Low Low Dat Pro Fac Ext Cet Arc Hub Fac Upp Upp War Pro Fac Res Res Acc Com Peak Influence 1885 | 5 3 70 480 257 . 175 302 1885 1079 319 . . . . 201 376 837 648 1133 692 . . . . 274 111 259 172 305 Initial 918 | . 3 . 27 187 . . 31 184 918 314 . . . . 31 98 210 334 156 546 . . . . 150 111 . 155 38 Average 277 | . 2 15 263 205 . 41 149 1004 756 123 . . . . 79 163 541 578 557 611 . . . . 182 109 81 89 171 Maximum Alert Level 5 | . . . 2 1 . . 1 5 3 1 . . . . 1 1 3 2 4 2 . . . . 1 . 1 . 1 Low Security (%) 56 | 100 100 100 27 49 . 100 75 1 . 78 . . . . 93 65 . . 8 . . . . . 55 100 93 100 46 Level 1 25 | . . . 56 50 . . 24 12 . 21 . . . . 6 34 34 4 43 . . . . . 44 . 6 . 53 Level 2 8 | . . . 15 . . . . 10 39 . . . . . . . 37 95 19 100 . . . . . . . . . Level 3 5 | . . . . . . . . 25 60 . . . . . . . 27 . 17 . . . . . . . . . . Level 4 3 | . . . . . . . . 37 . . . . . . . . . . 11 . . . . . . . . . . Level 5 . | . . . . . . . . 11 . . . . . . . . . . . . . . . . . . . . . High Security . | . . . . . . . . . . . . . . . . . . . . . . . . . . . . . . Max Security . | . . . . . . . . . . . . . . . . . . . . . . . . . . . . . . Squads Dispatched 64 | . . . 3 . . . 5 . 4 5 . . . . 16 4 . . 3 2 . . . . 4 3 1 3 11 Investigation 14 | . . . 2 . . . 2 . 2 1 . . . . 3 3 . . 1 . . . . . . . . . . Extermination 22 | . . . . . . . . . . 3 . . . . 5 . . . . . . . . . 4 . . 2 8 Reinforcement 18 | . . . 1 . . . . . 1 1 . . . . 4 1 . . 2 . . . . . . 3 1 1 3 Assault 3 | . . . . . . . . . 1 . . . . . . . . . . 2 . . . . . . . . . Garrison 7 | . . . . . . . 3 . . . . . . . 4 . . . . . . . . . . . . . . Intercept . | . . . . . . . . . . . . . . . . . . . . . . . . . . . . . . Searches Triggered . | . . . . . . . . . . . . . . . . . . . . . . . . . . . . . . Data Miner Redirects 6 | . . . . . . . . . . . . . . . 2 2 . . . 2 . . . . . . . . . Construction Impeded 1 | . . . . . . . . . . 1 . . . . . . . . . . . . . . . . . . . Haulers Reinforced 2 | . . . . . . . . . . . . . . . . . . . . . . . . . . 1 1 . . Active Scanning Responses . | . . . . . . . . . . . . . . . . . . . . . . . . . . . . . . Cargo Convoy Interrupts . | . . . . . . . . . . . . . . . . . . . . . . . . . . . . . . Stealth | -11 -10 -10 -9 -9 -9 -8 -8 -8 -8 -7 -7 -7 -7 -6 -6 -6 -6 -6 -6 -5 -5 -5 -5 -4 -4 -3 -2 -1 -1 --------- Run | Jun Mat Min Mat Min Exi Min Mat Gar Mat Fac Low Low Dat Pro Fac Ext Cet Arc Hub Fac Upp Upp War Pro Fac Res Res Acc Com Distress Signals 46 | . . . 4 . . . 1 . . . . . . . 1 . 2 . 2 1 . . . . . 3 12 4 16 Communications Jammed 49 | . . . . . . . . . . . . . . . . . . . 2 . . . . . 2 . . 13 32 Distress Signals 47 | . . . . . . . . . . . . . . . . . . . 2 . . . . . 1 . . 13 31 Times Spotted 463 | . . 3 42 9 . 12 21 35 25 17 8 6 . 16 27 22 11 17 20 7 7 . 21 8 17 4 27 11 70 Peak Tracking Total 13 | . . 3 5 4 . 3 4 3 6 5 3 3 . 4 3 5 5 2 4 3 4 . 13 2 4 3 8 3 5 Tactical Retreats 21 | . . . 3 . . 2 . 1 2 1 . 3 . . 1 . . . 2 . . . . . 1 . 3 1 1 Traps | -11 -10 -10 -9 -9 -9 -8 -8 -8 -8 -7 -7 -7 -7 -6 -6 -6 -6 -6 -6 -5 -5 -5 -5 -4 -4 -3 -2 -1 -1 ------- Run | Jun Mat Min Mat Min Exi Min Mat Gar Mat Fac Low Low Dat Pro Fac Ext Cet Arc Hub Fac Upp Upp War Pro Fac Res Res Acc Com Traps Triggered 20 | . . . 1 . . . . 6 3 1 . . . . 3 2 . . 1 . . . . . 1 1 . 1 . Indirectly . | . . . . . . . . . . . . . . . . . . . . . . . . . . . . . . Trap Hack Attempts . | . . . . . . . . . . . . . . . . . . . . . . . . . . . . . . Triggered . | . . . . . . . . . . . . . . . . . . . . . . . . . . . . . . Disarmed . | . . . . . . . . . . . . . . . . . . . . . . . . . . . . . . Reprogrammed . | . . . . . . . . . . . . . . . . . . . . . . . . . . . . . . Reused . | . . . . . . . . . . . . . . . . . . . . . . . . . . . . . . Traps Extracted . | . . . . . . . . . . . . . . . . . . . . . . . . . . . . . . Installed . | . . . . . . . . . . . . . . . . . . . . . . . . . . . . . . Triggered 13 | . . . . . . . . . . . . 2 . . . . . . . . . . 9 2 . . . . . Machines | -11 -10 -10 -9 -9 -9 -8 -8 -8 -8 -7 -7 -7 -7 -6 -6 -6 -6 -6 -6 -5 -5 -5 -5 -4 -4 -3 -2 -1 -1 ---------- Run | Jun Mat Min Mat Min Exi Min Mat Gar Mat Fac Low Low Dat Pro Fac Ext Cet Arc Hub Fac Upp Upp War Pro Fac Res Res Acc Com Machines Disabled 47 | . . . 1 . 1 . 1 12 5 . . . . . 1 5 1 3 8 . . . . . 5 . 2 . 2 Max in Single Turn 5 | . . . 1 . 1 . 1 1 5 . . . . . 1 1 1 1 4 . . . . . 1 . 1 . 2 Garrison Access 3 | . . . . . . . . . . . . . . . . . . . . . . . . . 1 . 1 1 . Garrison Relay 5 | . . . . . . . . 5 . . . . . . . . . . . . . . . . . . . . . Phase Generator 1 | . . . . . . . . . . . . . . . . . . . . . . . . . . . . . 1 Network Hub 1 | . . . . . . . . . . . . . . . . . . . 1 . . . . . . . . . . Machines Repaired . | . . . . . . . . . . . . . . . . . . . . . . . . . . . . . . Machines Sabotaged . | . . . . . . . . . . . . . . . . . . . . . . . . . . . . . . Overloaded Fab Kills . | . . . . . . . . . . . . . . . . . . . . . . . . . . . . . . Hacking | -11 -10 -10 -9 -9 -9 -8 -8 -8 -8 -7 -7 -7 -7 -6 -6 -6 -6 -6 -6 -5 -5 -5 -5 -4 -4 -3 -2 -1 -1 --------- Run | Jun Mat Min Mat Min Exi Min Mat Gar Mat Fac Low Low Dat Pro Fac Ext Cet Arc Hub Fac Upp Upp War Pro Fac Res Res Acc Com Machines Accessed 87 | . . . 7 . 1 . 10 4 5 7 . . 3 1 13 5 1 . 3 2 . . 1 . 5 1 . 6 12 Terminals 63 | . . . 4 . . . 7 4 5 5 . . . 1 6 5 1 . 3 1 . . . . 3 1 . 5 12 Fabricators 5 | . . . . . . . . . . . . . . . 4 . . . . 1 . . . . . . . . . Repair Stations 6 | . . . 2 . . . 1 . . 1 . . . . 1 . . . . . . . . . 1 . . . . Recycling Units 2 | . . . 1 . . . 1 . . . . . . . . . . . . . . . . . . . . . . Scanalyzers . | . . . . . . . . . . . . . . . . . . . . . . . . . . . . . . Garrison Access 6 | . . . . . . . 1 . . 1 . . . . 2 . . . . . . . . . 1 . . 1 . Total Hacks 232 | . . . 16 . 1 . 23 7 16 15 . . 22 1 31 15 2 . 6 7 . . 1 . 17 3 . 12 37 Successful 106 | . . . 8 . 1 . 12 2 8 8 . . 22 1 9 6 . . 3 2 . . 1 . 6 . . 5 12 Failed 125 | . . . 8 . . . 10 5 8 7 . . . . 22 9 2 . 3 5 . . . . 11 3 . 7 25 Catastrophic 31 | . . . 2 . . . 3 2 2 4 . . . . 3 1 1 . . . . . . . 1 1 . 3 8 Database Lockouts 1 | . . . . . . . 1 . . . . . . . . . . . . . . . . . . . . . . Manual 130 | . . . 11 . 1 . 15 3 13 8 . . . . 10 14 1 . 5 . . . 1 . 11 . . 4 33 Terminals 168 | . . . 10 . . . 18 7 16 12 . . . 1 14 15 2 . 6 3 . . . . 13 3 . 11 37 Fabricators 13 | . . . . . . . . . . . . . . . 9 . . . . 4 . . . . . . . . . Repair Stations 19 | . . . 5 . . . 3 . . 2 . . . . 6 . . . . . . . . . 3 . . . . Recycling Units 2 | . . . 1 . . . 1 . . . . . . . . . . . . . . . . . . . . . . Scanalyzers . | . . . . . . . . . . . . . . . . . . . . . . . . . . . . . . Garrison Access 6 | . . . . . . . 1 . . 1 . . . . 2 . . . . . . . . . 1 . . 1 . Terminal Hacks 55 | . . . 1 . 1 . 5 2 5 3 . . 22 1 . 2 . . 1 2 . . 1 . 1 . . 3 5 Record 9 | . . . . . . . . . 1 . . . 6 1 . . . . . . . . . . . . . 1 . Part Schematic 10 | . . . . . . . . . . 1 . . 9 . . . . . . . . . . . . . . . . Robot Schematic 4 | . . . . . . . . . . . . . 4 . . . . . . . . . . . . . . . . Robot Analysis 3 | . . . 1 . . . 2 . . . . . . . . . . . . . . . . . . . . . . Prototype ID Bank 3 | . . . . . . . . . . . . . 3 . . . . . . . . . . . . . . . . Open Door 3 | . . . . . . . . 1 . . . . . . . . . . . . . . 1 . . . . . 1 Level Access Points 1 | . . . . . . . . . . . . . . . . . . . 1 . . . . . . . . . . Branch Access Points 2 | . . . . . . . . . . 1 . . . . . . . . . 1 . . . . . . . . . Emergency Access Points 2 | . . . . . . . 1 1 . . . . . . . . . . . . . . . . . . . . . Terminal Index 2 | . . . . . . . . . . . . . . . . . . . . . . . . . . . . 1 1 Alert Level 7 | . . . . . . . 1 . 1 . . . . . . 1 . . . 1 . . . . 1 . . 1 1 Unreport Threat 4 | . . . . . . . . . 3 . . . . . . 1 . . . . . . . . . . . . . Locate Traps 1 | . . . . . . . . . . 1 . . . . . . . . . . . . . . . . . . . Hauler Manifests 1 | . . . . . . . 1 . . . . . . . . . . . . . . . . . . . . . . EX-Prototype ID Bank 1 | . . . . . 1 . . . . . . . . . . . . . . . . . . . . . . . . Disengage Seal 2 | . . . . . . . . . . . . . . . . . . . . . . . . . . . . . 2 Fabricator Hacks 4 | . . . . . . . . . . . . . . . 4 . . . . . . . . . . . . . . Network Status 1 | . . . . . . . . . . . . . . . 1 . . . . . . . . . . . . . . Load Schematic 2 | . . . . . . . . . . . . . . . 2 . . . . . . . . . . . . . . Build 1 | . . . . . . . . . . . . . . . 1 . . . . . . . . . . . . . . Repair Station Hacks 13 | . . . 3 . . . 2 . . 2 . . . . 4 . . . . . . . . . 2 . . . . Scan Component 7 | . . . 2 . . . 1 . . 1 . . . . 2 . . . . . . . . . 1 . . . . Repair 6 | . . . 1 . . . 1 . . 1 . . . . 2 . . . . . . . . . 1 . . . . Recycling Unit Hacks . | . . . . . . . . . . . . . . . . . . . . . . . . . . . . . . Scanalyzer . | . . . . . . . . . . . . . . . . . . . . . . . . . . . . . . Garrison Access Hacks 3 | . . . . . . . 1 . . . . . . . . . . . . . . . . . 1 . . 1 . Unlock Access 1 | . . . . . . . 1 . . . . . . . . . . . . . . . . . . . . . . Seal Access 2 | . . . . . . . . . . . . . . . . . . . . . . . . . 1 . . 1 . Unauthorized Hacks 31 | . . . 4 . . . 4 . 3 3 . . . . 1 4 . . 2 . . . . . 2 . . 1 7 Terminals 29 | . . . 3 . . . 3 . 3 3 . . . . 1 4 . . 2 . . . . . 2 . . 1 7 Assimilate 3 | . . . . . . . . . . 1 . . . . . . . . 1 . . . . . . . . . 1 Botnet 25 | . . . 3 . . . 3 . 3 2 . . . . 1 4 . . . . . . . . 2 . . 1 6 Sabotage 1 | . . . . . . . . . . . . . . . . . . . 1 . . . . . . . . . . Fabricators . | . . . . . . . . . . . . . . . . . . . . . . . . . . . . . . Repair Stations . | . . . . . . . . . . . . . . . . . . . . . . . . . . . . . . Recycling Units 2 | . . . 1 . . . 1 . . . . . . . . . . . . . . . . . . . . . . Tunnel 2 | . . . 1 . . . 1 . . . . . . . . . . . . . . . . . . . . . . Scanalyzers . | . . . . . . . . . . . . . . . . . . . . . . . . . . . . . . Garrison Access . | . . . . . . . . . . . . . . . . . . . . . . . . . . . . . . Data Cores Recovered 1 | . . . . . . . . . . . . . . . . . . . . 1 . . . . . . . . . Used . | . . . . . . . . . . . . . . . . . . . . . . . . . . . . . . Hacking Detections 74 | . . . 5 . . . 8 4 5 7 . . . 1 13 5 1 . 3 2 . . . . 3 1 . 5 11 Full Trace Events 11 | . . . 2 . . . 1 1 1 1 . . . . 3 2 . . . . . . . . . . . . . Feedback Events . | . . . . . . . . . . . . . . . . . . . . . . . . . . . . . . Feedback Blocked . | . . . . . . . . . . . . . . . . . . . . . . . . . . . . . . Robot Schematics Acquired 4 | . . . . . . . . . . . . . 4 . . . . . . . . . . . . . . . . Robots Built . | . . . . . . . . . . . . . . . . . . . . . . . . . . . . . . Authchips . | . . . . . . . . . . . . . . . . . . . . . . . . . . . . . . Time . | . . . . . . . . . . . . . . . . . . . . . . . . . . . . . . Total Robot Build Rating . | . . . . . . . . . . . . . . . . . . . . . . . . . . . . . . Part Schematics Acquired 10 | . . . . . . . . . . 1 . . 9 . . . . . . . . . . . . . . . . Parts Built 2 | . . . . . . . . . . . . . . . 2 . . . . . . . . . . . . . . Authchips . | . . . . . . . . . . . . . . . . . . . . . . . . . . . . . . Time 106 | . . . . . . . . . . . . . . . 106 . . . . . . . . . . . . . . Total Part Build Rating 12 | . . . . . . . . . . . . . . . 12 . . . . . . . . . . . . . . Parts Repaired 5 | . . . 1 . . . 1 . . 1 . . . . 2 . . . . . . . . . . . . . . Time 239 | . . . 38 . . . 16 . . 16 . . . . 70 . . . . . . . . . 99 . . . . Parts Recycled . | . . . . . . . . . . . . . . . . . . . . . . . . . . . . . . Recycled Matter . | . . . . . . . . . . . . . . . . . . . . . . . . . . . . . . Retrieved Matter . | . . . . . . . . . . . . . . . . . . . . . . . . . . . . . . Retrieved Components . | . . . . . . . . . . . . . . . . . . . . . . . . . . . . . . Parts Scanalyzed . | . . . . . . . . . . . . . . . . . . . . . . . . . . . . . . Part Schematics Acquired . | . . . . . . . . . . . . . . . . . . . . . . . . . . . . . . Parts Damaged . | . . . . . . . . . . . . . . . . . . . . . . . . . . . . . . Bothacking | -11 -10 -10 -9 -9 -9 -8 -8 -8 -8 -7 -7 -7 -7 -6 -6 -6 -6 -6 -6 -5 -5 -5 -5 -4 -4 -3 -2 -1 -1 ------------ Run | Jun Mat Min Mat Min Exi Min Mat Gar Mat Fac Low Low Dat Pro Fac Ext Cet Arc Hub Fac Upp Upp War Pro Fac Res Res Acc Com Used RIF Installer . | . . . . . . . . . . . . . . . . . . . . . . . . . . . . . . Robots Hacked 1 | . . . . . . . . . . . . . . . . . . . . . . . . . . . . . 1 Non-combat . | . . . . . . . . . . . . . . . . . . . . . . . . . . . . . . Combat . | . . . . . . . . . . . . . . . . . . . . . . . . . . . . . . Robot Hacks Applied . | . . . . . . . . . . . . . . . . . . . . . . . . . . . . . . Manual 1 | . . . . . . . . . . . . . . . . . . . . . . . . . . . . . 1 Relay Couplers Released 23 | . . . . . . . . 21 . . . . . . . . . . . . . . . . . . 2 . . Machine Destruction 23 | . . . . . . . . 21 . . . . . . . . . . . . . . . . . . 2 . . Fabnet Peak Effective % . | . . . . . . . . . . . . . . . . . . . . . . . . . . . . . . Robots Rewired 20 | . . . . . . . . 2 . . . . . . . 10 . . . . 2 . 5 . . . . . 1 Allies Hacked . | . . . . . . . . . . . . . . . . . . . . . . . . . . . . . . Hacks Repelled . | . . . . . . . . . . . . . . . . . . . . . . . . . . . . . . Allies | -11 -10 -10 -9 -9 -9 -8 -8 -8 -8 -7 -7 -7 -7 -6 -6 -6 -6 -6 -6 -5 -5 -5 -5 -4 -4 -3 -2 -1 -1 -------- Run | Jun Mat Min Mat Min Exi Min Mat Gar Mat Fac Low Low Dat Pro Fac Ext Cet Arc Hub Fac Upp Upp War Pro Fac Res Res Acc Com Total Allies 43 | . . . . . . . . 2 . 1 . . . 1 . 26 5 . . . 2 . 5 . . . . . 1 Largest Group 19 | . . . . . . . . 2 1 1 . . . 1 . 19 18 8 6 3 3 2 7 . . . . . 1 Highest-Rated Group 845 | . . . . . . . . 51 18 26 . . . 96 . 702 845 701 506 281 281 59 290 . . . . . 58 Highest-Rated Ally 159 | . . . . . . . . 31 18 26 . . . 96 . 159 159 156 96 96 96 30 49 . . . . . 58 Total Orders 6 | . . . . . . . . . . . . . . . . . 5 . . . . . . . . . . . 1 STAY 3 | . . . . . . . . . . . . . . . . . 3 . . . . . . . . . . . . ROAM 1 | . . . . . . . . . . . . . . . . . . . . . . . . . . . . . 1 FOLLOW 2 | . . . . . . . . . . . . . . . . . 2 . . . . . . . . . . . . Ally Attacks 361 | . . . . . . . . 5 . . . . . 8 . 99 88 28 55 12 20 . 43 . . . . . 3 Total Damage 9239 | . . . . . . . . 103 . . . . . 296 . 2055 1845 824 1823 270 587 . 1309 . . . . . 127 Kills 66 | . . . . . . . . 1 . . . . . 2 . 14 17 4 13 2 5 . 8 . . . . . . Allies Corrupted . | . . . . . . . . . . . . . . . . . . . . . . . . . . . . . . Allies Melted 2 | . . . . . . . . . . . . . . . . . . . . . . . . . . . 2 . . Intel | -11 -10 -10 -9 -9 -9 -8 -8 -8 -8 -7 -7 -7 -7 -6 -6 -6 -6 -6 -6 -5 -5 -5 -5 -4 -4 -3 -2 -1 -1 ------- Run | Jun Mat Min Mat Min Exi Min Mat Gar Mat Fac Low Low Dat Pro Fac Ext Cet Arc Hub Fac Upp Upp War Pro Fac Res Res Acc Com Robot Analysis Total 3 | . . . 1 . . . 2 . . . . . . . . . . . . . . . . . . . . . . Derelict Logs Recovered 7 | . . . . 1 . . . . . . 1 3 . 1 . . . . . . . . . 1 . . . . . Drone Launches . | . . . . . . . . . . . . . . . . . . . . . . . . . . . . . . Drone Recoveries . | . . . . . . . . . . . . . . . . . . . . . . . . . . . . . . Exploration | -11 -10 -10 -9 -9 -9 -8 -8 -8 -8 -7 -7 -7 -7 -6 -6 -6 -6 -6 -6 -5 -5 -5 -5 -4 -4 -3 -2 -1 -1 ------------- Run | Jun Mat Min Mat Min Exi Min Mat Gar Mat Fac Low Low Dat Pro Fac Ext Cet Arc Hub Fac Upp Upp War Pro Fac Res Res Acc Com Turns Passed 36533 | 200 422 212 1513 590 378 1119 1780 2382 1292 1841 1172 1326 195 1794 3086 1592 373 497 692 624 1318 300 856 771 2090 406 1155 1598 4959 Spaces Moved 17191 | 98 197 84 651 329 235 578 932 943 480 1010 581 564 84 607 1573 753 180 195 388 348 575 180 492 416 999 230 577 817 2095 Core 11 | 8 . . . . . . . . . . . . . 3 . . . . . . . . . . . . . . . Treads 15729 | 90 197 84 651 329 235 578 932 943 480 1010 581 564 84 502 224 753 180 195 388 348 575 180 492 416 999 230 577 817 2095 Legs 102 | . . . . . . . . . . . . . . 102 . . . . . . . . . . . . . . . Wheels 1349 | . . . . . . . . . . . . . . . 1349 . . . . . . . . . . . . . . Hover . | . . . . . . . . . . . . . . . . . . . . . . . . . . . . . . Flight . | . . . . . . . . . . . . . . . . . . . . . . . . . . . . . . Fastest Speed 50 | 50 160 240 160 160 160 160 160 160 160 155 156 160 232 50 125 167 160 160 160 160 160 160 160 160 160 160 162 160 160 Average Speed 174 | 151 204 240 176 160 160 160 160 222 232 155 158 201 232 268 166 181 176 160 160 160 160 160 160 160 161 160 164 161 163 Slowest Speed 480 | 160 240 240 240 160 160 160 160 240 240 156 235 320 232 480 480 250 247 160 160 160 160 160 160 165 162 160 165 165 165 Overloaded Moves . | . . . . . . . . . . . . . . . . . . . . . . . . . . . . . . Propulsion Burnouts . | . . . . . . . . . . . . . . . . . . . . . . . . . . . . . . Robots Hopped . | . . . . . . . . . . . . . . . . . . . . . . . . . . . . . . Cave-ins Triggered . | . . . . . . . . . . . . . . . . . . . . . . . . . . . . . . Exploration Rate (%) 50 | 6 23 29 63 68 61 89 68 92 38 28 59 74 70 79 45 79 66 83 39 9 62 28 68 55 24 6 24 24 55 Regions Visited 29 Branch Regions 17 Pre-discovered Areas 6 | . . . 1 1 . . 1 . . . 1 1 1 . . . . . . . . . . . . . . . . Known Exits Taken 20 | . . . . . . . 1 . 1 1 1 1 1 1 1 1 1 1 1 1 1 1 1 1 1 1 1 . . Unknown Exits Taken 8 | 1 1 1 1 1 1 1 . . . . . . . . . . . . . . . . . . . . . 1 . Scrap Searched 15 | . . . . 2 . 3 . . . . 1 3 . 1 . . . . . . 2 . . 3 . . . . . Spaces Dug 100 | . . . . . . . . 2 . 11 1 10 . 15 17 1 . . 6 4 11 1 . . 9 . . 7 5 Terrain Destroyed 792 | . . . . . . . . 10 55 30 8 38 . 71 22 30 6 22 184 5 50 1 3 11 101 . 23 16 106 Melee 32 | . . . . . . . . 2 . 11 . . . . 17 1 . . . 1 . . . . . . . . . Projectile 358 | . . . . . . . . 8 31 4 8 38 . 11 5 12 6 22 15 4 50 1 3 11 59 . 22 16 32 AOE 400 | . . . . . . . . . 24 15 . . . 60 . 17 . . 169 . . . . . 42 . . . 73 Terrain Rammed . | . . . . . . . . . . . . . . . . . . . . . . . . . . . . . . Walls Destroyed . | . . . . . . . . . . . . . . . . . . . . . . . . . . . . . . Machines Disabled . | . . . . . . . . . . . . . . . . . . . . . . . . . . . . . . Actions | -11 -10 -10 -9 -9 -9 -8 -8 -8 -8 -7 -7 -7 -7 -6 -6 -6 -6 -6 -6 -5 -5 -5 -5 -4 -4 -3 -2 -1 -1 --------- Run | Jun Mat Min Mat Min Exi Min Mat Gar Mat Fac Low Low Dat Pro Fac Ext Cet Arc Hub Fac Upp Upp War Pro Fac Res Res Acc Com Total 22074 | 124 217 88 873 361 239 728 1134 1109 563 1196 758 702 87 712 1914 916 229 328 419 401 903 190 552 493 1356 268 718 1044 3452 Wait 3047 | . . . 102 4 . 117 109 25 14 80 132 87 . 26 163 22 6 95 7 31 251 7 1 51 271 29 57 169 1191 Move 17162 | 98 196 83 650 328 234 577 931 942 479 1009 580 563 83 606 1572 752 179 194 387 347 574 179 491 415 998 229 576 816 2094 Hop . | . . . . . . . . . . . . . . . . . . . . . . . . . . . . . . Pick Up 173 | 7 9 1 13 2 1 2 13 10 4 12 1 2 . 17 28 8 7 1 . 4 2 . 4 1 6 2 12 1 3 Fast Attach 134 | 7 3 . 5 2 . . 5 2 2 11 1 2 . 13 19 1 7 8 . . 2 2 8 4 1 3 15 9 2 Attach 61 | . . . 3 . . 3 1 5 3 6 4 5 . 8 3 1 . . . 1 . . . 1 3 2 2 2 8 Detach 14 | . . . . . . . . 1 . 1 1 . 4 . 2 . . . . . . . . . . . 1 1 3 Swap 236 | . 1 . 4 2 1 2 7 9 6 14 8 4 . 12 27 17 4 2 7 7 7 . 2 9 18 . 6 14 46 Drop 218 | . 7 . 14 5 3 1 22 10 6 16 . . . 4 25 13 19 6 . 2 4 1 12 3 2 3 21 8 11 Fire 745 | 12 . 3 74 17 . 21 42 54 44 27 29 39 . 26 45 23 7 22 16 6 46 1 4 9 49 . 28 23 78 Melee 81 | . . . . . . . . 25 2 17 2 . . . 26 8 . . . 1 . . . . . . . . . Ram . | . . . . . . . . . . . . . . . . . . . . . . . . . . . . . . Kick . | . . . . . . . . . . . . . . . . . . . . . . . . . . . . . . Crush 43 | . 1 1 8 1 . 4 4 . 3 3 . . . . . 1 . . 1 2 . . . . 8 . . 1 5 Escape Stasis 16 | . . . . . . . . 10 . . . . . . 4 2 . . . . . . . . . . . . . Rewire 144 | . . . . . . 1 . 16 . . . . . . . 68 . . 1 . 17 . 30 . . . . . 11 Trap . | . . . . . . . . . . . . . . . . . . . . . . . . . . . . . . Miscellaneous . | . . . . . . . . . . . . . . . . . . . . . . . . . . . . . . Route ------- -11/Junkyard -10/Materials -10/Mines -9/Materials (discovered 5 exits: *Mat x2 / [*Min x2] / [*Sto]) -9/Mines (discovered 2 exits: *Mat / *Exi) -9/Exiles (discovered 2 exits: [*Min x2]) -8/Mines -8/Materials (discovered 3 exits: *Fac x2 / Gar) -8/Garrison (discovered 3 exits: *Mat x3) -8/Materials -7/Factory (discovered 3 exits: *Fac / *Low x2) -7/Lower Caves (discovered 2 exits: *Low / *Zio) -7/Lower Caves -7/Data Miner -6/Proximity Caves -6/Factory (discovered 4 exits: *Fac x2 / *Low / *Ext) -6/Extension (discovered 2 exits: *Fac / *Cet) -6/Cetus (discovered 2 exits: *Fac / *Arc) -6/Archives (discovered 3 exits: *Fac / *Hub x2) -6/Hub_04(d) (discovered 4 exits: *Fac x4) -5/Factory (discovered 2 exits: *Upp x2) -5/Upper Caves -5/Upper Caves -5/Warlord -4/Proximity Caves -4/Factory (discovered 2 exits: *Res / *Upp) -3/Research -2/Research (discovered 2 exits: *Acc / Tes) -1/Access -1/Command (discovered 2 exits: [*Sur x2]) 0b11 Command History --------- Turn | Location | Event 20 | -11/Junkyard | Discovered new exit (range 13) 201 | -11/Junkyard | Entered Materials 256 | -10/Materials | Discovered new exit (range 16) 301 | -10/Materials | Build established: Mutant 623 | -10/Materials | Entered Mines 758 | -10/Mines | Discovered new exit (range 16) 835 | -10/Mines | Entered Materials 835 | -9/Materials | Evolved 2 slots: Propulsion x1, Utility x1 1435 | -9/Materials | Discovered new exit (range 6) 1499 | -9/Materials | Discovered new exit (range 15) 1570 | -9/Materials | Discovered new exit (range 16) 2061 | -9/Materials | Repaired Hrd. Medium Armor Plating 2096 | -9/Materials | Discovered new exit (range 16) 2333 | -9/Materials | Discovered new exit (range 10) 2348 | -9/Materials | Entered Mines 2401 | -9/Mines | Learned location of 1 exit from Materials 2408 | -9/Mines | Discovered new exit (range 5) 2536 | -9/Mines | A weapon hastily lodged in a ceiling crevice suddenly fell to the ground 2765 | -9/Mines | Learned location of Storage (-9) 2930 | -9/Mines | Deemed a non-threat by the Exiles lab entrance 2932 | -9/Mines | Discovered new exit (range 5) 2938 | -9/Mines | Entered Exiles 2962 | -9/Exiles | Discovered new exit (range 15) 2982 | -9/Exiles | Met 8R-AWN 3006 | -9/Exiles | Met EX-HEX 3050 | -9/Exiles | Met EX-BIN 3068 | -9/Exiles | Aligned with FarCom system 3070 | -9/Exiles | Given EX-Vault access code 3108 | -9/Exiles | Opened EX-Vault 3122 | -9/Exiles | Found AWS/Gauss 3155 | -9/Exiles | Warned to stay clear of 0b10 Research branches 3203 | -9/Exiles | Met EX-DEC 3297 | -9/Exiles | Discovered new exit (range 12) 3316 | -9/Exiles | Left Exiles lab with AWS/Gauss 3316 | -9/Exiles | Entered Mines 4378 | -8/Mines | Discovered new exit (range 8) 4435 | -8/Mines | Entered Materials 4435 | -8/Materials | Evolved 2 slots: Weapon x2 4436 | -8/Materials | Identified exit to Factory 4694 | -8/Materials | Repaired Imp. Treads 4772 | -8/Materials | Build established: Skirmisher 5091 | -8/Materials | Central database locked down 5187 | -8/Materials | Discovered exit to Factory (range 9) 5481 | -8/Materials | Identified exit to Garrison 5811 | -8/Materials | Garrison activated, responded to threat 6215 | -8/Materials | Entered Garrison 6336 | -8/Garrison | Triggered checkpoint 6351 | -8/Garrison | Garrison Relay disabled 6591 | -8/Garrison | Triggered checkpoint 6727 | -8/Garrison | Lost 3 parts (1n2w) 6808 | -8/Garrison | Triggered checkpoint 6846 | -8/Garrison | Destroyed 7 combat bots 6939 | -8/Garrison | Discovered new exit (range 12) 7212 | -8/Garrison | Triggered checkpoint 7311 | -8/Garrison | Garrison Relay disabled 7329 | -8/Garrison | Garrison Relay disabled 7628 | -8/Garrison | Discovered new exit (range 14) 7916 | -8/Garrison | Triggered checkpoint 8004 | -8/Garrison | Triggered checkpoint 8075 | -8/Garrison | Garrison Relay disabled 8332 | -8/Garrison | Triggered checkpoint 8404 | -8/Garrison | Triggered checkpoint 8451 | -8/Garrison | Garrison Relay disabled 8542 | -8/Garrison | Discovered new exit (range 14) 8597 | -8/Garrison | Entered Materials 8597 | -8/Materials | Accompanied by 1 ally 8997 | -8/Materials | First assault squad dispatched 9054 | -8/Materials | Build established: Mutant 9368 | -8/Materials | Build established: Skirmisher 9788 | -8/Materials | Discovered exit to Factory (range 15) 9818 | -8/Materials | System corruption reached 10% 9889 | -8/Materials | Entered Factory 9889 | -7/Factory | Evolved 2 slots: Propulsion x1, Utility x1 10188 | -7/Factory | Build established: Scavenger-Skirmisher 10214 | -7/Factory | Discovered new exit (range 4) 10220 | -7/Factory | Identified exit to Factory 10257 | -7/Factory | Repaired Imp. Treads 10721 | -7/Factory | Assembled infested ambush trap array 10771 | -7/Factory | Lost 3 parts (1n1u1w) 11270 | -7/Factory | Identified exit to Lower Caves 11422 | -7/Factory | Build established: Skirmisher 11730 | -7/Factory | Entered Lower Caves 11769 | -7/Lower Caves | A Derelict revealed a hidden shortcut to a safe place 11770 | -7/Lower Caves | Learned Factory stockpile data 11787 | -7/Lower Caves | Identified exit to Zion 11791 | -7/Lower Caves | Met a Warlord Commander 11792 | -7/Lower Caves | Learned location of Warlord (-5) 11793 | -7/Lower Caves | Found Encrypted Comm Array 12028 | -7/Lower Caves | Build established: Mutant 12316 | -7/Lower Caves | Spotted B-75 Beast 12361 | -7/Lower Caves | Destroyed B-75 Beast 12886 | -7/Lower Caves | Discovered new exit (range 10) 12898 | -7/Lower Caves | Identified exit to Lower Caves 12902 | -7/Lower Caves | Entered another Lower Caves area 12930 | -7/Lower Caves | Learned Factory stockpile data 12935 | -7/Lower Caves | Learned Factory stockpile data 13143 | -7/Lower Caves | Spotted B-75 Beast 13236 | -7/Lower Caves | Build established: Scavenger-Skirmisher 13263 | -7/Lower Caves | Learned location of Zion (-6) 13405 | -7/Lower Caves | Lost 5 parts (3n1u1w) 13707 | -7/Lower Caves | Build established: Mutant 14207 | -7/Lower Caves | Discovered new exit (range 9) 14225 | -7/Lower Caves | Identified exit to Data Miner 14228 | -7/Lower Caves | Entered Data Miner 14228 | -7/Data Miner | Discovered new exit (range 6) 14275 | -7/Data Miner | Met Data Miner 14328 | -7/Data Miner | Learned location of Section 7 (-3) 14328 | -7/Data Miner | Acquired the access code to Warlord's prototype stash 14358 | -7/Data Miner | Received God Mode back door access code from Data Miner 14418 | -7/Data Miner | Identified exit to Proximity Caves 14423 | -7/Data Miner | Entered Proximity Caves 14527 | -6/Proximity Caves | Escorted by Enhanced Grunt 14699 | -6/Proximity Caves | Spotted B-75 Beast 15067 | -6/Proximity Caves | Build established: Tank 15156 | -6/Proximity Caves | Core integrity fell below 50% 15206 | -6/Proximity Caves | Destroyed B-75 Beast 15209 | -6/Proximity Caves | Released all parts (9) 15215 | -6/Proximity Caves | Found Prototype Device 15215 | -6/Proximity Caves | Identified Exp. Thermal Shield 15712 | -6/Proximity Caves | Build established: Scavenger-Tank 15784 | -6/Proximity Caves | Learned 4 Factory zone layouts 16068 | -6/Proximity Caves | Attracted the attention of an 0b10 checkpoint 16191 | -6/Proximity Caves | Discovered exit to Factory (range 9) 16217 | -6/Proximity Caves | Entered Factory 16217 | -6/Factory | Evolved 2 slots: Utility x2 16218 | -6/Factory | Identified exit to Factory 16409 | -6/Factory | Incoming investigation squad redirected 16942 | -6/Factory | Repaired Hcp. Storage Unit 17020 | -6/Factory | Repaired Imp. Deuterium Engine 17089 | -6/Factory | Found Prototype Launcher 17089 | -6/Factory | Identified Scatter Rocket Array 17104 | -6/Factory | Discovered new exit (range 9) 17147 | -6/Factory | Garrison activated, responded to threat 17209 | -6/Factory | Identified exit to Lower Caves 18078 | -6/Factory | Garrison activated, responded to threat 18453 | -6/Factory | Build established: Scavenger-Mutant 18618 | -6/Factory | Incoming investigation squad redirected 18706 | -6/Factory | Fabricated Arm. Medium Treads (x2) 18844 | -6/Factory | Discovered exit to Factory (range 15) 19004 | -6/Factory | Build established: Mutant 19130 | -6/Factory | Discovered new exit (range 11) 19300 | -6/Factory | Identified exit to Extension 19303 | -6/Factory | Entered Extension 19442 | -6/Extension | Rescued a captive Derelict 19583 | -6/Extension | Rescued a captive Derelict 19648 | -6/Extension | Rescued a captive Derelict 19735 | -6/Extension | Rescued a captive Derelict 19751 | -6/Extension | Rescued a captive Derelict 19807 | -6/Extension | Rescued a captive Derelict 19841 | -6/Extension | Build established: Tank 19861 | -6/Extension | Rescued A7 20220 | -6/Extension | Spotted B-75 Beast 20238 | -6/Extension | Spotted B-75 Beast 20238 | -6/Extension | Allies destroyed B-75 Beast 20262 | -6/Extension | Allies destroyed B-75 Beast 20361 | -6/Extension | Rescued a captive Derelict 20362 | -6/Extension | Rescued a captive Derelict 20391 | -6/Extension | Rescued a captive Derelict 20414 | -6/Extension | Rescued a captive Derelict 20416 | -6/Extension | Rescued a captive Derelict 20421 | -6/Extension | Rescued a captive Derelict 20431 | -6/Extension | Rescued a captive Derelict 20490 | -6/Extension | Rescued a captive Derelict 20490 | -6/Extension | Rescued a captive Derelict 20505 | -6/Extension | Incoming investigation squad redirected 20545 | -6/Extension | Incoming investigation squad redirected 20827 | -6/Extension | Discovered exit to Factory (range 10) 20829 | -6/Extension | Discovered new exit (range 6) 20878 | -6/Extension | Identified exit to Cetus 20895 | -6/Extension | Entered Cetus 20895 | -6/Cetus | Accompanied by 18 allies (A7) 20900 | -6/Cetus | Acquired a Cetus Manufacturing Module code from A7 20923 | -6/Cetus | Spotted Cetus Guard 20923 | -6/Cetus | Spotted Cetus Guard 20925 | -6/Cetus | Spotted Cetus Guard 20925 | -6/Cetus | Spotted Cetus Guard 20930 | -6/Cetus | Allies destroyed Cetus Guard 20933 | -6/Cetus | Allies destroyed Cetus Guard 20935 | -6/Cetus | Allies destroyed Cetus Guard 20944 | -6/Cetus | Allies destroyed Cetus Guard 20961 | -6/Cetus | Build established: Commander-Tank 20994 | -6/Cetus | System corruption reached 10% 21070 | -6/Cetus | Started Cetus Manufacturing Module 21088 | -6/Cetus | Escorted A7 to Cetus Mainframe 21095 | -6/Cetus | Manufactured an Enhanced Grunt 21109 | -6/Cetus | Discovered new exit (range 15) 21120 | -6/Cetus | Manufactured an Enhanced Grunt 21145 | -6/Cetus | Manufactured an Enhanced Grunt 21146 | -6/Cetus | Spotted Cetus Guard 21146 | -6/Cetus | Destroyed Cetus Guard 21146 | -6/Cetus | Spotted Cetus Guard 21149 | -6/Cetus | Spotted Cetus Guard 21152 | -6/Cetus | Spotted Cetus Guard 21163 | -6/Cetus | Allies destroyed Cetus Guard 21166 | -6/Cetus | Destroyed Cetus Guard 21170 | -6/Cetus | Manufactured an Enhanced Grunt 21171 | -6/Cetus | Destroyed Cetus Guard 21175 | -6/Cetus | Discovered exit to Factory (range 16) 21186 | -6/Cetus | Met Revision 17 21195 | -6/Cetus | Manufactured an Enhanced Grunt 21264 | -6/Cetus | Identified exit to Archives 21268 | -6/Cetus | Entered Archives 21268 | -6/Archives | Accompanied by 8 allies (A7) 21273 | -6/Archives | Received a hacking code to weaken MAIN.C 21407 | -6/Archives | Discovered new exit (range 15) 21652 | -6/Archives | Discovered exit to Factory (range 15) 21710 | -6/Archives | Discovered new exit (range 16) 21755 | -6/Archives | Identified exit to Hub_04(d) 21765 | -6/Archives | Entered Hub_04(d) 21765 | -6/Hub_04(d) | Accompanied by 6 allies 22032 | -6/Hub_04(d) | Discovered exit to Factory (range 14) 22379 | -6/Hub_04(d) | Network Hub disabled 22419 | -6/Hub_04(d) | Build established: Scavenger-Skirmisher 22455 | -6/Hub_04(d) | Spotted Lightning 22455 | -6/Hub_04(d) | Spotted Lightning 22457 | -6/Hub_04(d) | Entered Factory 22457 | -5/Factory | Accompanied by 3 allies 22457 | -5/Factory | Evolved 2 slots: Propulsion x2 22470 | -5/Factory | Identified exit to Upper Caves 22757 | -5/Factory | First assault squad dispatched 22776 | -5/Factory | Incoming assault squad redirected 22780 | -5/Factory | Incoming assault squad redirected 23081 | -5/Factory | Entered Upper Caves 23081 | -5/Upper Caves | Accompanied by 3 allies 23884 | -5/Upper Caves | Build established: Scavenger-Mutant 24100 | -5/Upper Caves | Attracted the attention of an 0b10 outpost 24136 | -5/Upper Caves | Found Prototype Device 24136 | -5/Upper Caves | Identified Exp. Thermal Shield 24340 | -5/Upper Caves | Discovered new exit (range 15) 24396 | -5/Upper Caves | Identified exit to Upper Caves 24399 | -5/Upper Caves | Entered another Upper Caves area 24399 | -5/Upper Caves | Accompanied by 2 allies 24415 | -5/Upper Caves | Build established: Scavenger-Skirmisher 24604 | -5/Upper Caves | Discovered new exit (range 11) 24617 | -5/Upper Caves | Identified exit to Warlord 24655 | -5/Upper Caves | Found Alien Artifact 24655 | -5/Upper Caves | Identified Core Expander 24655 | -5/Upper Caves | Installed Core Expander, added new Propulsion slot 24699 | -5/Upper Caves | Entered Warlord 24699 | -5/Warlord | Accompanied by 2 allies 24754 | -5/Warlord | System corruption cleaned by Quarantine Array 24945 | -5/Warlord | Build established: Scavenger-Mutant 25099 | -5/Warlord | Visited the Vortex Lab 25102 | -5/Warlord | Warlord's base attacked by MAIN.C 25204 | -5/Warlord | Met Warlord 25220 | -5/Warlord | Opened Warlord's prototype stash 25248 | -5/Warlord | Found Prototype Processor 25248 | -5/Warlord | Identified Exp. Core Analyzer 25253 | -5/Warlord | Found Prototype Device 25253 | -5/Warlord | Identified Thermal Barrier 25287 | -5/Warlord | Found Prototype Reactor 25452 | -5/Warlord | Warlord forces counterattacked 25490 | -5/Warlord | Spotted Executioner 25495 | -5/Warlord | Destroyed Executioner 25534 | -5/Warlord | Spotted Executioner 25535 | -5/Warlord | Spotted Striker 25539 | -5/Warlord | Discovered new exit (range 12) 25553 | -5/Warlord | Identified exit to Proximity Caves 25555 | -5/Warlord | Entered Proximity Caves 25555 | -4/Proximity Caves | Spotted B-86 Titan 25558 | -4/Proximity Caves | Spotter reported a threat 25749 | -4/Proximity Caves | Build established: Scavenger-Gunner 26148 | -4/Proximity Caves | Discovered new exit (range 10) 26161 | -4/Proximity Caves | Identified exit to Factory 26307 | -4/Proximity Caves | System corruption reached 10% 26326 | -4/Proximity Caves | Entered Factory 26326 | -4/Factory | Evolved 2 slots: Power x1, Utility x1 26799 | -4/Factory | Build established: Scavenger-Skirmisher 28015 | -4/Factory | Discovered new exit (range 14) 28036 | -4/Factory | Identified exit to Upper Caves 28058 | -4/Factory | Build established: Scavenger-Mutant 28405 | -4/Factory | Discovered new exit (range 8) 28413 | -4/Factory | Identified exit to Research 28416 | -4/Factory | Entered Research 28416 | -3/Research | Evolved 2 slots: Utility x2 28536 | -3/Research | Found Antimissile System 28555 | -3/Research | Discovered new exit (range 5) 28560 | -3/Research | Identified exit to Research 28573 | -3/Research | Found Prototype Processor 28590 | -3/Research | Build established: Scavenger-Tank 28616 | -3/Research | Revision forces began assault on 0b10 28641 | -3/Research | Met up with Revision 17++ 28655 | -3/Research | Found Prototype Slashing Weapon 28655 | -3/Research | Identified Centrium Greatsword 28822 | -3/Research | Entered another Research area 28822 | -2/Research | Warlord forces began assault on 0b10 28822 | -2/Research | Evolved 2 slots: Power x1, Utility x1 28823 | -2/Research | Identified exit to Testing 28847 | -2/Research | Distinguished unit "Shockpunchers" dispatched to help 28932 | -2/Research | Research machine network offline 29108 | -2/Research | Spotted B-90 Cyclops 29127 | -2/Research | Destroyed B-90 Cyclops 29484 | -2/Research | Spotted Striker 29488 | -2/Research | Borebot progress halted 29500 | -2/Research | Borebot progress halted 29563 | -2/Research | Spotted Executioner 29566 | -2/Research | Borebot progress halted 29598 | -2/Research | Spotted Striker 29602 | -2/Research | Spotted Striker 29619 | -2/Research | Destroyed Striker 29622 | -2/Research | Spotted Executioner 29623 | -2/Research | Destroyed Striker 29624 | -2/Research | Spotted Executioner 29626 | -2/Research | Destroyed Executioner 29626 | -2/Research | Destroyed Executioner 29641 | -2/Research | Destroyed Executioner 29662 | -2/Research | Destroyed 8 combat bots 29671 | -2/Research | Found Prototype Device 29671 | -2/Research | Identified Adv. Kinecellerator 29696 | -2/Research | Spotted Executioner 29720 | -2/Research | Found Prototype Processor 29720 | -2/Research | Identified Exp. Targeting Computer 29746 | -2/Research | Identified Exp. Target Analyzer 29751 | -2/Research | Found Exp. Core Analyzer 29944 | -2/Research | Discovered new exit (range 16) 29968 | -2/Research | Identified exit to Access 29977 | -2/Research | Entered Access 29977 | -1/Access | Evolved 2 slots: Power x1, Utility x1 29994 | -1/Access | Found Antimissile System 30001 | -1/Access | Build established: Scavenger-Gunner 30389 | -1/Access | Build established: Scavenger-Mutant 30918 | -1/Access | Build established: Scavenger-Gunner 31380 | -1/Access | Build established: Scavenger-Mutant 31382 | -1/Access | Discovered new exit (range 18) 31575 | -1/Access | Entered Command 32036 | -1/Command | Build established: Scavenger-Gunner 32261 | -1/Command | Phase Generator disabled 32935 | -1/Command | Disengaged cave seal 32935 | -1/Command | Derelicts emerged from the dark tunnel 32935 | -1/Command | Welcomed Warlord to Command 33338 | -1/Command | Spotted B-99 Colossus 33386 | -1/Command | Discovered new exit (range 23) 33412 | -1/Command | Build established: Hacker-Skirmisher 33443 | -1/Command | Spotted 04-ILW(L) 34256 | -1/Command | Disengaged cave seal 34256 | -1/Command | Derelicts emerged from the dark tunnel 34340 | -1/Command | Spotted B-99 Colossus 34549 | -1/Command | Build established: Scavenger-Gunner 34664 | -1/Command | Warlord commented on Warlord statues 34666 | -1/Command | Identified Vortex Chain Reactor 34678 | -1/Command | Spotted Combat Programmer 34678 | -1/Command | Spotted M Guard 34679 | -1/Command | Spotted Combat Programmer 34680 | -1/Command | Spotted M Guard 34715 | -1/Command | Destroyed M Guard 34715 | -1/Command | All MAIN.C guards destroyed 34897 | -1/Command | Build established: Scavenger-Tank 34982 | -1/Command | Met MAIN.C 34984 | -1/Command | Hacked MAIN.C using A7's code 35004 | -1/Command | 0b10 Conduit disabled 35013 | -1/Command | MAIN.C activated Command garrisons 35040 | -1/Command | Warlord destroyed during the assault 35041 | -1/Command | Destroyed MAIN.C 35063 | -1/Command | Discovered new exit (range 44) 35063 | -1/Command | Discovered new exit (range 83) 35063 | -1/Command | Extracted map data and part IDs from MAIN.C's data core 35286 | -1/Command | Build established: Scavenger-Gunner 36236 | -1/Command | Build established: Scavenger-Mutant 36241 | -1/Command | System corruption reached 10% 36534 | *** | Establishing 0b11! Last Messages --------------- 36190_ H-88 Terminator is broken beyond repair. 36191_ Attempting to rewire H-88 Terminator. 36191_ H-88 Terminator is broken beyond repair. 36192_ Attempting to rewire H-88 Terminator. 36192_ H-88 Terminator is broken beyond repair. 36214_ System corrupted: Matter fused (-10). 36225_ Acquired 10 matter. 36240_ Dropped Helical Railgun. 36240_ Acquired Corrupted Powered Hammer. 36240_ Integrated Corrupted Powered Hammer (+3). 36242_ Acquired 10 matter. 36271_ 2SFL:ZEJB#DKV9PESVLDL 36303_ System corrupted: Heat flow error (+178). 36347_ B OGU=RGH6C>SL9R 1SQLIGLGT6EUZUAXRNJ 36392_ YG|JALJC7DEU4V2UZGFY&X#BTRCEL 4|V,% 36407_ System corrupted: Component data lost. 36448_ UOYW>,4BK9FQMLO15CLXMKK [Achievement: Commander 0b11] Map ----- +----------------------------------------------------+ | !%= ####??# #?# | | #######+#### #???#############" #?# | | * ############ % #???# # #?# | | ######?????# #???# | + #?# | | + #?????#% #???# # #?# | | """" #### #?????# #???# # #?# | | """" #??# #?????# #???# # #?# | | """" #??# #?????# #???############## #?# | | ] """" #??# #?????# #????############# #?# | | #??# #????## ##???# #?# | | #??# #????# #####[= ### | | ###+#####+#??# #????# "" !%[%!% %%! | | #??# #??# #????# "T !% [ !// | | #??# ####+###### !/ | | #??# # # ##### // #### | | #??# # ^ | ^ #######???# #??# | | #??# # ^ #?????????##### #??# | | #### # "" "" #?????????????# #??# | | +^ ""T"" #?????????????# #??# | | ###+####### """ #?????????????# ###### #??# | | ### ## #?????????????# #????# #??? | | ""# ## #????????????## ##???# #??? | | ""# ############??########### #???# #??? | | ""# #?????????????# #???# #??? | | ""# #?????????????# #???# #??? | | ""# #?????????????# @ ####### #???# #??? | | ##########?????????????# #?????## ##???# #??? | | ???????????????????????#####??????# #????# #??? | | ??????????????????????????????????# #????# #??? | | ??????????????????????????????????# #????# #??? | | ??????????????????????????????????# #????# #??? | | ??????????????????????????????????# #????# #??? | | ??????????????????????????????????# #????# #??? | | ??????????????????????????????????# ######+#+##?? | | ??????????????????????????????????# ## #?? | | ?????????????????????????????????## ## #?? | | ?????????????????????????????????# # "" #?? | | ?????????????????????????????????# "" # "" #?? | | ?????????????????????????????????# T" + "T #?? | | ?????????????????????????????????# # "" #?? | | ?????????????????????????????######+### "" #?? | | ?????????????????????????????# + #?? | | ?????????????????????????????# # [ #?? | | ?????????????????????????????# "" ###+######?? | | ?????????????????????????????# """" #?# #??????? | | ?????????????????????????????# """" #?# #??????? | | ?????????????????????????????# "" #?# #??????? | | ?????????????????????????????#! #?# #??????? | | ?????????????????????????????# = ### #??????? | | ?????????????????????????????# *+ #??????? | +----------------------------------------------------+ Best States ------------- Heat Dissipation 114 Energy Generation 95 Energy Capacity 1200 Matter Stores 800 Matter Capacity 800 Sight Range 16 Robot Scan Range 16 Terrain Scan Range 24 Terrain Scan Density 210 Jamming Range 14 Armor Coverage 900 Resistance: KI 30 Resistance: TH 50 Resistance: EM 25 Point Defense Rating 480 Weapon Cycling 25 Evasion (%) 50 Targeting Accuracy 12 Target Analysis 10 Core Analysis 8 Recoil Reduction 7 Kinecelleration 50 Offensive Hacking 52 Defensive Hacking 12 Item Schematics ----------------- Imp. Signal Interpreter | -7/Factory | Hacked Combat Drone Bay | -7/Data Miner | Free Lgt. Regenerative Plating | -7/Data Miner | Free Cld. Cesium-ion Thruster | -7/Data Miner | Free Gravity Neutralizer | -7/Data Miner | Free Antimatter Cannon | -7/Data Miner | Free Arm. Medium Treads | -7/Data Miner | Free Imp. Component Analysis Suite | -7/Data Miner | Free Disruptor Cannon | -7/Data Miner | Free Adv. Plasma Cannon | -7/Data Miner | Free Robot Schematics ------------------ O-24 Administrator | -7/Data Miner | Free L-41 Fighter | -7/Data Miner | Free G-47 Trooper | -7/Data Miner | Free Y-54 Guardian | -7/Data Miner | Free Fabricated ------------ Arm. Medium Treads | x2 | -6/Factory Alien Tech Used ----------------- Core Expander Achievements -------------- Commander 0b11 Poison In The Code Challenges ------------ None Game ------ Seed TrackerFlyingAutocannon Manual? 0 Play Time 03:57:58 Cumulative 219.0 hours Start 2023.08.17 @ 18:23:18 End 2023.08.27 @ 19:10:29 Sessions 15 Manual Loads 0 Difficulty Rogue Special Mode None Game No. 251 Rogue 251 Adventurer 0 Explorer 0 Win Type 1 Total 6 Types 3/1/0/1/0/0/1/0/0 Lore% 71 Gallery% 78 Achievement% 64 Wizard Run 0 Options --------- ASCII 0 Keyboard 0 Movement Numpad Keybinds 0 Fullscreen 1 Font 18/SmallcapsGlow Map View 76x50 Tactical HUD 1 Map Filters NONE Filters NONE Steam 1 RUN: dde31537-9573-49d3-aefc-11668889bb88